lending/lending_fUSD_20250706
["ID","MTS","AMOUNT","RATE_DAILY","PERIOD"]
[369946953,1751793050205,-460.0,0.00019178,2]
[369946955,1751793050215,-460.0,0.00019178,2]
[369946957,1751793050224,-460.0,0.00019178,2]
[369946959,1751793050233,-460.0,0.00019178,2]
[369946961,1751793050242,-460.0,0.00019178,2]
[369946963,1751793050252,-460.0,0.00019178,2]
[369946965,1751793050262,-460.0,0.00019178,2]
[369946967,1751793050272,-460.0,0.00019178,2]
[369946970,1751793050286,-1498.83,0.00019178,2]
[369946972,1751793050297,-460.0,0.00019178,2]
[369946974,1751793050307,-460.0,0.00019178,2]
[369946976,1751793050318,-300.0,0.00019178,2]
[369946978,1751793050328,-460.0,0.00019178,2]
[369946980,1751793050337,-460.0,0.00019178,2]
[369946982,1751793050347,-597.99,0.00019178,2]
[369946984,1751793050358,-524.09,0.00019178,2]
[369946986,1751793050368,-460.0,0.00019178,2]
[369946988,1751793050379,-460.0,0.00019178,2]
[369946990,1751793050390,-460.0,0.00019178,2]
[369946992,1751793050401,-460.0,0.00019178,2]
[369946995,1751793050411,-460.0,0.00019178,2]
[369946997,1751793050420,-460.0,0.00019178,2]
[369946999,1751793050431,-460.0,0.00019178,2]
[369947001,1751793050441,-913.0,0.00019178,2]
[369947003,1751793050451,-477.94,0.00019178,2]
[369947005,1751793050461,-460.0,0.00019178,2]
[369947007,1751793050472,-460.0,0.00019178,2]
[369947009,1751793050482,-460.0,0.00019178,2]
[369947011,1751793050492,-460.0,0.00019178,2]
[369947013,1751793050502,-563.82,0.00019178,2]
[369947015,1751793050512,-1048.79,0.00019178,2]
[369947017,1751793050525,-460.0,0.00019178,2]
[369947019,1751793050536,-260.03239847,0.00019178,2]
[369947021,1751793050546,-460.0,0.00019178,2]
[369947024,1751793050557,-460.0,0.00019178,2]
[369947026,1751793050567,-791.52,0.00019178,2]
[369947028,1751793050577,-492.41968209,0.00019178,2]
[369947030,1751793050587,-460.0,0.00019178,2]
[369947032,1751793050597,-460.0,0.00019178,2]
[369947034,1751793050608,-783.6,0.00019178,2]
[369947036,1751793050618,-542.15,0.00019178,2]
[369947038,1751793050628,-460.0,0.00019178,2]
[369947040,1751793050638,-460.0,0.00019178,2]
[369947042,1751793050648,-150.0,0.00019178,2]
[369947044,1751793050658,-460.0,0.00019178,2]
[369947046,1751793050668,-751.96,0.00019178,2]
[369947048,1751793050678,-576.0,0.00019178,2]
[369947050,1751793050688,-460.0,0.00019178,2]
[369947053,1751793050698,-460.0,0.00019178,2]
[369947055,1751793050708,-460.0,0.00019178,2]
[369947057,1751793050718,-460.0,0.00019178,2]
[369947059,1751793050728,-460.0,0.00019178,2]
[369947061,1751793050738,-1896.02,0.00019178,2]
[369947063,1751793050748,-460.0,0.00019178,2]
[369947065,1751793050758,-1002.9,0.00019178,2]
[369947067,1751793050768,-460.0,0.00019178,2]
[369947069,1751793050778,-460.0,0.00019178,2]
[369947071,1751793050788,-460.0,0.00019178,2]
[369947073,1751793050798,-460.0,0.00019178,2]
[369947075,1751793050808,-460.0,0.00019178,2]
[369947078,1751793050818,-460.0,0.00019178,2]
[369947080,1751793050828,-681.49,0.00019178,2]
[369947082,1751793050838,-460.0,0.00019178,2]
[369947084,1751793050848,-460.0,0.00019178,2]
[369947086,1751793050858,-460.0,0.00019178,2]
[369947088,1751793050868,-460.0,0.00019178,2]
[369947090,1751793050878,-520.41,0.00019178,2]
[369947092,1751793050887,-460.0,0.00019178,2]
[369947094,1751793050898,-460.0,0.00019178,2]
[369947096,1751793050908,-1058.22,0.00019178,2]
[369947098,1751793050918,-760.14,0.00019178,2]
[369947100,1751793050928,-460.0,0.00019178,2]
[369947102,1751793050939,-460.0,0.00019178,2]
[369947104,1751793050949,-460.0,0.00019178,2]
[369947106,1751793050960,-460.0,0.00019178,2]
[369947109,1751793050971,-809.91,0.00019178,2]
[369947111,1751793050981,-884.62,0.00019178,2]
[369947113,1751793050991,-747.79,0.00019178,2]
[369947115,1751793051001,-460.0,0.00019178,2]
[369947117,1751793051011,-460.0,0.00019178,2]
[369947119,1751793051020,-460.0,0.00019178,2]
[369947121,1751793051031,-771.24,0.00019178,2]
[369947123,1751793051040,-210.18290268,0.00019178,2]
[369947125,1751793051050,-460.0,0.00019178,2]
[369947127,1751793051060,-460.0,0.00019178,2]
[369947129,1751793051071,-460.0,0.00019178,2]
[369947131,1751793051081,-460.0,0.00019178,2]
[369947134,1751793051091,-460.0,0.00019178,2]
[369947136,1751793051101,-460.0,0.00019178,2]
[369947138,1751793051111,-2027.6,0.00019178,2]
[369947140,1751793051121,-581.03999293,0.00019178,2]
[369947142,1751793051131,-460.0,0.00019178,2]
[369947144,1751793051141,-460.0,0.00019178,2]
[369947146,1751793051152,-460.0,0.00019178,2]
[369947148,1751793051162,-460.0,0.00019178,2]
[369947150,1751793051172,-460.0,0.00019178,2]
[369947152,1751793051181,-460.0,0.00019178,2]
[369947154,1751793051191,-460.0,0.00019178,2]
[369947156,1751793051201,-579.0,0.00019178,2]
[369947158,1751793051211,-460.0,0.00019178,2]
[369947160,1751793051221,-863.29,0.00019178,2]
[369947162,1751793051231,-460.0,0.00019178,2]
[369947164,1751793051241,-460.0,0.00019178,2]
[369947166,1751793051251,-460.0,0.00019178,2]
[369947169,1751793051261,-460.0,0.00019178,2]
[369947171,1751793051271,-460.0,0.00019178,2]
[369947173,1751793051281,-479.27,0.00019178,2]
[369947175,1751793051290,-460.0,0.00019178,2]
[369947177,1751793051300,-460.0,0.00019178,2]
[369947179,1751793051309,-460.0,0.00019178,2]
[369947181,1751793051319,-2472.27,0.00019178,2]
[369947183,1751793051329,-728.74,0.00019178,2]
[369947185,1751793051342,-460.0,0.00019178,2]
[369947187,1751793051351,-460.0,0.00019178,2]
[369947189,1751793051361,-500.0,0.00019178,2]
[369947191,1751793051371,-460.0,0.00019178,2]
[369947193,1751793051381,-500.0,0.00019178,2]
[369947195,1751793051391,-460.0,0.00019178,2]
[369947198,1751793051401,-1097.99,0.00019178,2]
[369947200,1751793051412,-500.0,0.00019178,2]
[369947202,1751793051422,-2533.85,0.00019178,2]
[369947204,1751793051432,-460.0,0.00019178,2]
[369947206,1751793051443,-460.0,0.00019178,2]
[369947208,1751793051453,-460.0,0.00019178,2]
[369947210,1751793051463,-500.0,0.00019178,2]
[369947212,1751793051473,-460.0,0.00019178,2]
[369947214,1751793051483,-460.0,0.00019178,2]
[369947216,1751793051492,-1086.0,0.00019178,2]
[369947218,1751793051502,-460.0,0.00019178,2]
[369947220,1751793051514,-460.0,0.00019178,2]
[369947221,1751793051531,-907.62,0.00019178,2]
[369947240,1751793051794,-460.0,0.00019178,2]
[369947243,1751793051806,-460.0,0.00019178,2]
[369947245,1751793051815,-460.0,0.00019178,2]
[369947247,1751793051824,-460.0,0.00019178,2]
[369947249,1751793051833,-542.94404629,0.00019178,2]
[369947251,1751793051842,-526.62,0.00019178,2]
[369947253,1751793051851,-2998.23,0.00019178,2]
[369947255,1751793051860,-460.0,0.00019178,2]
[369947257,1751793051870,-490.95600379,0.00019178,2]
[369947259,1751793051879,-460.0,0.00019178,2]
[369947261,1751793051888,-460.0,0.00019178,2]
[369947263,1751793051898,-460.0,0.00019178,2]
[369947265,1751793051907,-464.69,0.00019178,2]
[369947267,1751793051916,-460.0,0.00019178,2]
[369947269,1751793051926,-460.0,0.00019178,2]
[369947271,1751793051935,-500.0,0.00019178,2]
[369947273,1751793051944,-500.0,0.00019178,2]
[369947275,1751793051954,-500.0,0.00019178,2]
[369947277,1751793051963,-460.0,0.00019178,2]
[369947279,1751793051974,-460.0,0.00019178,2]
[369947281,1751793051983,-586.6387938,0.00019178,2]
[369947283,1751793051992,-1276.9,0.00019178,2]
[369947285,1751793052002,-460.0,0.00019178,2]
[369947287,1751793052016,-460.0,0.00019178,2]
[369947289,1751793052026,-460.0,0.00019178,2]
[369947291,1751793052035,-460.0,0.00019178,2]
[369947293,1751793052045,-460.0,0.00019178,2]
[369947295,1751793052055,-460.0,0.00019178,2]
[369947297,1751793052064,-460.0,0.00019178,2]
[369947299,1751793052073,-460.0,0.00019178,2]
[369947301,1751793052083,-460.0,0.00019178,2]
[369947303,1751793052092,-692.08,0.00019178,2]
[369947305,1751793052102,-460.0,0.00019178,2]
[369947307,1751793052111,-460.0,0.00019178,2]
[369947309,1751793052121,-1000.0,0.00019178,2]
[369947311,1751793052130,-151.0,0.00019178,2]
[369947313,1751793052140,-460.0,0.00019178,2]
[369947315,1751793052150,-151.0,0.00019178,2]
[369947317,1751793052159,-151.0,0.00019178,2]
[369947319,1751793052169,-932.26,0.00019178,2]
[369947321,1751793052179,-460.0,0.00019178,2]
[369947323,1751793052189,-151.0,0.00019178,2]
[369947325,1751793052198,-271.239192,0.00019178,2]
[369947327,1751793052207,-460.0,0.00019178,2]
[369947329,1751793052217,-540.24,0.00019178,2]
[369947331,1751793052226,-1016.9539929,0.00019178,2]
[369947392,1751793052778,-614.2460071,0.00019178,2]
[369947394,1751793052788,-460.0,0.00019178,2]
[369947396,1751793052797,-460.0,0.00019178,2]
[369947398,1751793052807,-460.0,0.00019178,2]
[369947400,1751793052816,-248.59106724,0.00019178,2]
[369947435,1751793053139,-211.40893276,0.00019178,2]
[369947437,1751793053148,-460.0,0.00019178,2]
[369947439,1751793053158,-460.0,0.00019178,2]
[369947441,1751793053167,-460.0,0.00019178,2]
[369947443,1751793053177,-649.06,0.00019178,2]
[369947445,1751793053186,-460.0,0.00019178,2]
[369947447,1751793053196,-638.13,0.00019178,2]
[369947449,1751793053205,-460.0,0.00019178,2]
[369947451,1751793053215,-429.61389598,0.00019178,2]
[369947532,1751793054083,-30.38610402,0.00019178,2]
[369947534,1751793054094,-500.0,0.00019178,2]
[369947536,1751793054103,-460.0,0.00019178,2]
[369947538,1751793054112,-500.0,0.00019178,2]
[369947540,1751793054122,-527.49,0.00019178,2]
[369947542,1751793054131,-500.0,0.00019178,2]
[369947544,1751793054140,-722.97,0.00019178,2]
[369947546,1751793054149,-460.0,0.00019178,2]
[369947548,1751793054158,-297.90984967,0.00019178,2]
[369947550,1751793054168,-460.0,0.00019178,2]
[369947552,1751793054177,-916.1,0.00019178,2]
[369947554,1751793054187,-460.0,0.00019178,2]
[369947556,1751793054196,-1237.87,0.00019178,2]
[369947558,1751793054205,-460.0,0.00019178,2]
[369947560,1751793054214,-460.0,0.00019178,2]
[369947562,1751793054224,-460.0,0.00019178,2]
[369947564,1751793054233,-460.0,0.00019178,2]
[369947566,1751793054242,-460.0,0.00019178,2]
[369947568,1751793054251,-460.0,0.00019178,2]
[369947570,1751793054262,-460.0,0.00019178,2]
[369947572,1751793054271,-671.33,0.00019178,2]
[369947574,1751793054280,-460.0,0.00019178,2]
[369947576,1751793054289,-151.0,0.00019178,2]
[369947578,1751793054299,-1386.06,0.00019178,2]
[369947580,1751793054310,-460.0,0.00019178,2]
[369947582,1751793054320,-461.6264114,0.00019178,2]
[369947584,1751793054330,-460.0,0.00019178,2]
[369947586,1751793054339,-460.0,0.00019178,2]
[369947588,1751793054349,-23.05772661,0.00019178,2]
[369947591,1751793054369,-456.24828214,0.00019178,2]
[369947596,1751793054401,-462.69399125,0.00019178,2]
[369947598,1751793054412,-460.0,0.00019178,2]
[369947600,1751793054422,-872.83,0.00019178,2]
[369947602,1751793054432,-460.0,0.00019178,2]
[369947604,1751793054442,-460.0,0.00019178,2]
[369947606,1751793054451,-460.0,0.00019178,2]
[369947607,1751793054460,-1201.37,0.00019178,2]
[369947609,1751793054469,-460.0,0.00019178,2]
[369947611,1751793054479,-1839.90600875,0.00019178,2]
[369947614,1751793054491,-44.66399125,0.00019178,2]
[369947616,1751793054500,-460.0,0.00019178,2]
[369947618,1751793054510,-460.0,0.00019178,2]
[369947620,1751793054519,-460.0,0.00019178,2]
[369947622,1751793054534,-460.0,0.00019178,2]
[369947624,1751793054543,-832.82,0.00019178,2]
[369947626,1751793054552,-1420.87,0.00019178,2]
[369947628,1751793054561,-316.52814875,0.00019178,2]
[369947643,1751793054702,-143.47185125,0.00019178,2]
[369947646,1751793054712,-460.0,0.00019178,2]
[369947648,1751793054722,-592.81,0.00019178,2]
[369947650,1751793054731,-472.563128,0.00019178,2]
[369947653,1751793054753,-27.646872,0.00019178,2]
[369947655,1751793054763,-482.84900733,0.00019178,2]
[369947696,1751793055379,-21.98819984,0.00019178,2]
[369947697,1751793055389,-460.0,0.00019178,2]
[369947698,1751793055398,-460.0,0.00019178,2]
[369947699,1751793055407,-460.0,0.00019178,2]
[369947700,1751793055417,-460.0,0.00019178,2]
[369947701,1751793055426,-460.0,0.00019178,2]
[369947702,1751793055435,-460.75980795,0.00019178,2]
[369947703,1751793055444,-460.0,0.00019178,2]
[369947704,1751793055454,-198.6416329,0.00019178,2]
[369947705,1751793055465,-261.3583671,0.00019178,2]
[369947706,1751793055474,-592.42,0.00019178,2]
[369947707,1751793055483,-332.76238387,0.00019178,2]
[369947708,1751793055494,-127.23761613,0.00019178,2]
[369947709,1751793055507,-704.71,0.00019178,2]
[369947710,1751793055518,-460.0,0.00019178,2]
[369947711,1751793055532,-460.0,0.00019178,2]
[369947712,1751793055541,-460.0,0.00019178,2]
[369947713,1751793055550,-270.73427104,0.00019178,2]
[369947715,1751793055574,-189.26572896,0.00019178,2]
[369947717,1751793055584,-670.04,0.00019178,2]
[369947719,1751793055595,-1240.15,0.00019178,2]
[369947721,1751793055607,-64.21318499,0.00019178,2]
[369947723,1751793055618,-378.43528873,0.00019178,2]
[369947725,1751793055629,-17.35152628,0.00019178,2]
[369947727,1751793055638,-460.0,0.00019178,2]
[369947729,1751793055648,-79.46145429,0.00019178,2]
[369947732,1751793055660,-380.53854571,0.00019178,2]
[369947734,1751793055670,-460.0,0.00019178,2]
[369947736,1751793055679,-810.83,0.00019178,2]
[369947738,1751793055689,-460.0,0.00019178,2]
[369947739,1751793055699,-83.38125147,0.00019178,2]
[369947742,1751793055715,-376.61874853,0.00019178,2]
[369947744,1751793055725,-460.0,0.00019178,2]
[369947746,1751793055735,-473.05857941,0.00019178,2]
[369947748,1751793055747,-14.23142059,0.00019178,2]
[369947751,1751793055757,-698.28,0.00019178,2]
[369947753,1751793055767,-460.0,0.00019178,2]
[369947755,1751793055777,-460.0,0.00019178,2]
[369947757,1751793055786,-460.0,0.00019178,2]
[369947759,1751793055796,-460.0,0.00019178,2]
[369947760,1751793055806,-460.0,0.00019178,2]
[369947762,1751793055815,-1278.47,0.00019178,2]
[369947764,1751793055825,-896.85,0.00019178,2]
[369947767,1751793055836,-256.74848186,0.00019178,2]
[369947768,1751793055846,-460.0,0.00019178,2]
[369947771,1751793055856,-460.0,0.00019178,2]
[369947773,1751793055865,-460.0,0.00019178,2]
[369947774,1751793055875,-460.0,0.00019178,2]
[369947776,1751793055886,-591.0,0.00019178,2]
[369947778,1751793055896,-460.0,0.00019178,2]
[369947780,1751793055906,-460.0,0.00019178,2]
[369947782,1751793055916,-758.52,0.00019178,2]
[369947785,1751793055926,-460.0,0.00019178,2]
[369947787,1751793055938,-155.482208,0.00019178,2]
[369947789,1751793055948,-460.0,0.00019178,2]
[369947791,1751793055958,-263.17588955,0.00019178,2]
[369947793,1751793055971,-196.82411045,0.00019178,2]
[369947795,1751793055982,-543.67588885,0.00019178,2]
[369947797,1751793055995,-201.72411115,0.00019178,2]
[369947799,1751793056005,-461.1029448,0.00019178,2]
[369947801,1751793056014,-16.57822881,0.00019178,2]
[369947803,1751793056029,-443.42177119,0.00019178,2]
[369947806,1751793056039,-652.0,0.00019178,2]
[369947807,1751793056048,-546.40832881,0.00019178,2]
[369947809,1751793056060,-1000.0,0.00019178,2]
[369948111,1751793768493,209.94537996,0.00016964,7]
[369948131,1751793860798,270.39,0.00013699,2]
[369948162,1751794102465,10956.40306879,0.00012,30]
[369948192,1751794232468,-1200.0,0.00013999,2]
[369948194,1751794232478,-300.0,0.00014,2]
[369948196,1751794232488,-1176.1924126,0.00014,2]
[369948197,1751794232499,-738.6896368,0.00014,2]
[369948198,1751794232511,-338.76638364,0.00014,2]
[369948199,1751794232522,-1148.71016618,0.00014,2]
[369948200,1751794232587,-454.79979123,0.00014,2]
[369948203,1751794232598,-1117.58849431,0.00014,2]
[369948205,1751794232609,-1050.46279949,0.00014,2]
[369948206,1751794232620,-423.59708003,0.00014,2]
[369948207,1751794232632,-1641.73585932,0.00014,2]
[369948216,1751794232703,-675.0,0.00014,2]
[369948219,1751794232715,-275.51774876,0.00014,2]
[369948223,1751794232736,-699.5932251,0.00014,2]
[369948224,1751794232749,-2800.77332479,0.00014,2]
[369948228,1751794238196,-268.40672288,0.00014,2]
[369948229,1751794238417,-8428.54902853,0.00014,2]
[369948230,1751794238429,-6474.18164849,0.00014,2]
[369948231,1751794238471,-557.23,0.00014,2]
[369948232,1751794238530,-19275.23322458,0.00014,2]
[369948233,1751794238541,-294.22488331,0.00014,2]
[369948393,1751794240376,-8861.01438061,0.00014,2]
[369948395,1751794240388,-134.71582581,0.00014,2]
[369948397,1751794240397,-300.0,0.00015399,2]
[369948399,1751794240406,-302.0606062,0.00015399,2]
[369948414,1751794240543,-338.9393938,0.00015399,2]
[369948416,1751794240552,-2777.69972382,0.000163,2]
[369948418,1751794240561,-1354.93721715,0.000164,2]
[369948420,1751794240570,-1354.93721714,0.00016624,2]
[369948422,1751794240580,-523.0,0.00016636,2]
[369948424,1751794240589,-700.0,0.00017064,2]
[369948426,1751794240598,-600.0,0.00017064,2]
[369948428,1751794240607,-500.0,0.00017064,2]
[369948430,1751794240616,-1354.93721714,0.00017348,2]
[369948432,1751794240625,-250.0,0.00017459,2]
[369948434,1751794240634,-303.97,0.00017858,2]
[369948436,1751794240643,-305.55,0.00017858,2]
[369948438,1751794240652,-300.54,0.00017858,2]
[369948440,1751794240661,-305.21,0.00017858,2]
[369948442,1751794240669,-300.97,0.00017858,2]
[369948444,1751794240680,-212.31,0.00017897,2]
[369948446,1751794240689,-1000.0,0.00017897,2]
[369948448,1751794240698,-169.36383469,0.00018,2]
[369948450,1751794240707,-1354.93721714,0.00018072,2]
[369948452,1751794240716,-410.0,0.000181,2]
[369948454,1751794240725,-600.0,0.0001816,2]
[369948456,1751794240734,-700.0,0.0001816,2]
[369948458,1751794240743,-1290.39,0.00018205,2]
[369948460,1751794240752,-207.4,0.00018264,2]
[369948462,1751794240761,-825.53,0.00018334,2]
[369948464,1751794240771,-402.0,0.0001859,2]
[369948466,1751794240782,-156.487346,0.00018794,2]
[369948467,1751794240791,-1354.93721714,0.00018797,2]
[369948469,1751794240800,-39537.35866454,0.000188,2]
[369948471,1751794240809,-2000.0,0.000189,2]
[369948473,1751794240818,-3649.56,0.000189,2]
[369948475,1751794240827,-171.47,0.00018904,2]
[369948477,1751794240836,-1937.60844,0.0001899,2]
[369948479,1751794240845,-394.0,0.0001907,2]
[369948481,1751794240854,-397.53701064,0.00019073,2]
[369948483,1751794240863,-156.27622135,0.00019073,2]
[369948485,1751794240872,-1388.70654225,0.00019073,2]
[369948487,1751794240881,-1763.65797358,0.00019078,2]
[369948489,1751794240890,-203.87397802,0.00019078,2]
[369948491,1751794240899,-572.9152,0.00019078,2]
[369948493,1751794240908,-2689.91378143,0.00019078,2]
[369948495,1751794240920,-2310.08621857,0.00019078,2]
[369948497,1751794240929,-887.0,0.00019108,2]
[369948499,1751794240938,-203.873978,0.00019148,2]
[369948501,1751794240947,-7299.04,0.00019152,2]
[369948503,1751794240956,-1763.6579735,0.00019169,2]
[369948505,1751794240966,-14786.34182993,0.0001917,2]
[369948509,1751794240993,-447.06094897,0.0001917,2]
[369948513,1751794241022,-380.81282777,0.0001917,2]
[369948520,1751794241083,-2376.73380318,0.0001917,2]
[369948698,1751794242901,-0.04865726,0.0001917,2]
[369948701,1751794242913,-2232.13837385,0.0001917,2]
[369948703,1751794242926,-2112.17613466,0.0001917,2]
[369948705,1751794242937,-302.0,0.0001917,2]
[369948772,1751794243547,-12198.75975945,0.0001917,2]
[369948775,1751794243560,-938.48794599,0.0001917,2]
[369948778,1751794243572,-770.69613598,0.0001917,2]
[369948780,1751794243584,-610.98651663,0.0001917,2]
[369948783,1751794243596,-165090.89220099,0.0001917,2]
[369948785,1751794243605,-500.0,0.00019173,2]
[369948787,1751794243615,-500.0,0.00019173,2]
[369948789,1751794243625,-500.0,0.00019173,2]
[369948791,1751794243635,-500.0,0.00019173,2]
[369948793,1751794243645,-504.22473831,0.00019173,2]
[369948795,1751794243654,-500.0,0.00019173,2]
[369948797,1751794243664,-428.69430596,0.00019173,2]
[369948799,1751794243673,-500.0,0.00019173,2]
[369948801,1751794243683,-281.56279205,0.00019173,2]
[369948804,1751794243693,-857.793,0.00019177,2]
[369948806,1751794243702,-500.0,0.00019177,2]
[369948808,1751794243712,-500.0,0.00019177,2]
[369948810,1751794243722,-500.0,0.00019177,2]
[369948812,1751794243732,-500.0,0.00019177,2]
[369948814,1751794243741,-500.0,0.00019177,2]
[369948816,1751794243751,-329.23508272,0.00019177,2]
[369948818,1751794243760,-500.0,0.00019177,2]
[369948820,1751794243771,-500.0,0.00019177,2]
[369948822,1751794243780,-500.0,0.00019177,2]
[369948824,1751794243790,-500.0,0.00019177,2]
[369948826,1751794243800,-500.0,0.00019177,2]
[369948828,1751794243809,-500.0,0.00019177,2]
[369948830,1751794243818,-500.0,0.00019177,2]
[369948832,1751794243828,-263.10806204,0.00019177,2]
[369948834,1751794243837,-500.0,0.00019177,2]
[369948836,1751794243846,-500.0,0.00019177,2]
[369948838,1751794243856,-500.0,0.00019177,2]
[369948840,1751794243865,-454.94568411,0.00019177,2]
[369948842,1751794243875,-232.04848502,0.00019178,2]
[369948844,1751794243884,-14367.37378576,0.00019178,2]
[369948846,1751794243894,-9225.65,0.00019178,2]
[369948848,1751794243904,-460.0,0.00019178,2]
[369948850,1751794243913,-460.0,0.00019178,2]
[369948852,1751794243923,-460.0,0.00019178,2]
[369948854,1751794243933,-460.0,0.00019178,2]
[369948856,1751794243943,-460.0,0.00019178,2]
[369948858,1751794243953,-460.0,0.00019178,2]
[369948860,1751794243962,-460.0,0.00019178,2]
[369948863,1751794243972,-460.0,0.00019178,2]
[369948865,1751794243981,-460.0,0.00019178,2]
[369948867,1751794243991,-460.0,0.00019178,2]
[369948869,1751794244000,-557.33594655,0.00019178,2]
[369948871,1751794244014,-460.0,0.00019178,2]
[369948873,1751794244024,-460.0,0.00019178,2]
[369948875,1751794244034,-223.67110604,0.00019178,2]
[369948877,1751794244044,-460.0,0.00019178,2]
[369948879,1751794244054,-460.0,0.00019178,2]
[369948881,1751794244063,-252.72194863,0.00019178,2]
[369948883,1751794244073,-460.0,0.00019178,2]
[369948885,1751794244083,-460.0,0.00019178,2]
[369948887,1751794244092,-460.0,0.00019178,2]
[369948889,1751794244102,-460.0,0.00019178,2]
[369948891,1751794244112,-460.0,0.00019178,2]
[369948893,1751794244122,-460.0,0.00019178,2]
[369948895,1751794244132,-460.0,0.00019178,2]
[369948897,1751794244141,-460.0,0.00019178,2]
[369948899,1751794244151,-460.0,0.00019178,2]
[369948901,1751794244161,-460.0,0.00019178,2]
[369948903,1751794244170,-460.0,0.00019178,2]
[369948905,1751794244180,-460.0,0.00019178,2]
[369948907,1751794244189,-460.0,0.00019178,2]
[369948909,1751794244199,-460.0,0.00019178,2]
[369948911,1751794244208,-460.0,0.00019178,2]
[369948913,1751794244219,-460.0,0.00019178,2]
[369948915,1751794244229,-247.35192671,0.00019178,2]
[369948917,1751794244239,-231.81571871,0.00019178,2]
[369948919,1751794244249,-460.0,0.00019178,2]
[369948921,1751794244258,-460.0,0.00019178,2]
[369948922,1751794244268,-460.0,0.00019178,2]
[369948923,1751794244277,-460.0,0.00019178,2]
[369948924,1751794244287,-460.0,0.00019178,2]
[369948925,1751794244296,-460.0,0.00019178,2]
[369948926,1751794244305,-460.0,0.00019178,2]
[369948927,1751794244315,-460.0,0.00019178,2]
[369948928,1751794244325,-460.0,0.00019178,2]
[369948929,1751794244334,-460.0,0.00019178,2]
[369948930,1751794244344,-460.0,0.00019178,2]
[369948931,1751794244353,-460.0,0.00019178,2]
[369948932,1751794244363,-460.0,0.00019178,2]
[369948933,1751794244372,-493.89187005,0.00019178,2]
[369948935,1751794244382,-460.0,0.00019178,2]
[369948937,1751794244393,-460.0,0.00019178,2]
[369948939,1751794244402,-460.0,0.00019178,2]
[369948941,1751794244412,-460.0,0.00019178,2]
[369948943,1751794244422,-460.0,0.00019178,2]
[369948945,1751794244432,-460.0,0.00019178,2]
[369948947,1751794244442,-460.0,0.00019178,2]
[369948950,1751794244452,-460.0,0.00019178,2]
[369948952,1751794244461,-460.0,0.00019178,2]
[369948954,1751794244470,-460.0,0.00019178,2]
[369948956,1751794244480,-460.0,0.00019178,2]
[369948958,1751794244489,-460.0,0.00019178,2]
[369948960,1751794244499,-460.0,0.00019178,2]
[369948962,1751794244508,-460.0,0.00019178,2]
[369948964,1751794244518,-460.0,0.00019178,2]
[369948966,1751794244528,-460.0,0.00019178,2]
[369948968,1751794244538,-460.0,0.00019178,2]
[369948970,1751794244547,-460.0,0.00019178,2]
[369948972,1751794244557,-460.0,0.00019178,2]
[369948974,1751794244567,-460.0,0.00019178,2]
[369948976,1751794244578,-454.43444295,0.00019178,2]
[369948978,1751794244588,-460.0,0.00019178,2]
[369948980,1751794244598,-460.0,0.00019178,2]
[369948982,1751794244608,-460.0,0.00019178,2]